fUST/lending_fUST_20240830
["ID","MTS","AMOUNT","RATE_DAILY","PERIOD"]
[336691498,1725028247536,-500.0,0.0003589,2]
[336691499,1725028247545,-535.03,0.0003589,31]
[336691500,1725028247554,-500.0,0.0003589,31]
[336691501,1725028247563,-500.0,0.0003589,31]
[336691502,1725028247572,-427.687881,0.0003589,7]
[336691503,1725028247582,-427.687881,0.0003589,7]
[336691504,1725028247591,-427.687881,0.0003589,7]
[336691505,1725028247600,-427.687881,0.0003589,7]
[336691506,1725028247610,-500.0,0.0003589,31]
[336691507,1725028247619,-500.0,0.0003589,30]
[336691508,1725028247629,-492.86,0.0003589,31]
[336691509,1725028247638,-500.0,0.0003589,31]
[336691510,1725028247648,-500.0,0.0003589,31]
[336691511,1725028247658,-151.0,0.0003589,7]
[336691512,1725028247667,-151.0,0.0003589,7]
[336691513,1725028247677,-1276.31,0.0003589,31]
[336691514,1725028247686,-500.0,0.0003589,31]
[336691515,1725028247695,-180.15702681,0.0003589,31]
[336691516,1725028247705,-151.117491,0.0003589,7]
[336691517,1725028247714,-500.0,0.0003589,31]
[336691518,1725028247724,-500.0,0.0003589,31]
[336691519,1725028247733,-500.0,0.0003589,31]
[336691520,1725028247746,-500.0,0.0003589,31]
[336691521,1725028247756,-151.0,0.0003589,7]
[336691522,1725028247765,-151.0,0.0003589,7]
[336691523,1725028247774,-151.0,0.0003589,7]
[336691524,1725028247783,-151.0,0.0003589,7]
[336691525,1725028247793,-500.0,0.0003589,31]
[336691526,1725028247803,-153.85163194,0.0003589,31]
[336691527,1725028247911,-346.14836806,0.0003589,31]
[336691528,1725028247921,-500.0,0.0003589,31]
[336691529,1725028247932,-500.0,0.0003589,31]
[336691530,1725028247941,-151.0,0.0003589,7]
[336691531,1725028247952,-151.0,0.0003589,7]
[336691532,1725028247961,-257.346084,0.0003589,7]
[336691533,1725028247970,-500.0,0.0003589,31]
[336691534,1725028247980,-151.0,0.0003589,7]
[336691535,1725028247989,-151.0,0.0003589,7]
[336691536,1725028248000,-500.0,0.0003589,31]
[336691537,1725028248009,-151.0,0.0003589,7]
[336691538,1725028248019,-151.0,0.0003589,7]
[336691539,1725028248111,-151.0,0.0003589,7]
[336691540,1725028248122,-500.0,0.0003589,31]
[336691541,1725028248131,-511.3,0.0003589,31]
[336691542,1725028248141,-151.0,0.0003589,7]
[336691543,1725028248150,-151.0,0.0003589,7]
[336691544,1725028248160,-500.0,0.0003589,31]
[336691545,1725028248170,-1344.712763,0.0003589,7]
[336691546,1725028248180,-1344.712763,0.0003589,7]
[336691547,1725028248191,-1344.712763,0.0003589,7]
[336691548,1725028248200,-500.0,0.0003589,31]
[336691549,1725028248211,-500.0,0.0003589,31]
[336691550,1725028248223,-1344.712763,0.0003589,7]
[336691551,1725028248234,-1344.712763,0.0003589,7]
[336691552,1725028248244,-1344.712763,0.0003589,7]
[336691553,1725028248254,-500.0,0.0003589,31]
[336691554,1725028248264,-500.0,0.0003589,31]
[336691555,1725028248274,-500.0,0.0003589,31]
[336691556,1725028248283,-503.07554724,0.0003589,31]
[336691557,1725028248293,-296.829689,0.0003589,7]
[336691558,1725028248303,-569.450983,0.0003589,7]
[336691559,1725028248312,-569.450983,0.0003589,7]
[336691560,1725028248321,-500.0,0.0003589,31]
[336691561,1725028248330,-569.450983,0.0003589,7]
[336691562,1725028248339,-569.450983,0.0003589,7]
[336691563,1725028248348,-569.450983,0.0003589,7]
[336691564,1725028248357,-569.450983,0.0003589,7]
[336691565,1725028248367,-500.0,0.0003589,31]
[336691566,1725028248376,-500.0,0.0003589,31]
[336691567,1725028248386,-151.0,0.0003589,7]
[336691568,1725028248395,-151.0,0.0003589,7]
[336691569,1725028248405,-500.0,0.0003589,31]
[336691570,1725028248415,-480.41631778,0.0003589,31]
[336691571,1725028248424,-500.0,0.0003589,31]
[336691572,1725028248433,-500.0,0.0003589,31]
[336691573,1725028248443,-151.0,0.0003589,7]
[336691574,1725028248452,-151.0,0.0003589,7]
[336691575,1725028248462,-151.0,0.0003589,7]
[336691576,1725028248471,-151.0,0.0003589,7]
[336691577,1725028248480,-151.0,0.0003589,7]
[336691578,1725028248490,-151.0,0.0003589,7]
[336691579,1725028248504,-500.0,0.0003589,31]
[336691580,1725028248514,-179.600618,0.0003589,7]
[336691581,1725028248524,-151.0,0.0003589,7]
[336691582,1725028248533,-151.0,0.0003589,7]
[336691583,1725028248543,-500.0,0.0003589,31]
[336691584,1725028248553,-151.0,0.0003589,7]
[336691585,1725028248564,-151.0,0.0003589,7]
[336691586,1725028248573,-151.0,0.0003589,7]
[336691587,1725028248583,-151.0,0.0003589,7]
[336691588,1725028248593,-500.0,0.0003589,31]
[336691589,1725028248602,-2823.53,0.0003589,31]
[336691590,1725028248612,-151.0,0.0003589,7]
[336691591,1725028248622,-151.0,0.0003589,7]
[336691592,1725028248631,-151.0,0.0003589,7]
[336691593,1725028248640,-151.0,0.0003589,7]
[336691594,1725028248649,-151.0,0.0003589,7]
[336691595,1725028248659,-151.0,0.0003589,7]
[336691596,1725028248670,-168.023216,0.0003589,7]
[336691597,1725028248679,-500.0,0.0003589,31]
[336691598,1725028248689,-500.0,0.0003589,31]
[336691599,1725028248699,-500.0,0.0003589,31]
[336691600,1725028248709,-151.0,0.0003589,7]
[336691601,1725028248719,-151.0,0.0003589,7]
[336691602,1725028248729,-151.0,0.0003589,7]
[336691603,1725028248739,-500.0,0.0003589,31]
[336691604,1725028248753,-500.0,0.0003589,31]
[336691605,1725028248763,-500.0,0.0003589,31]
[336691606,1725028248772,-1487.753155,0.0003589,7]
[336691607,1725028248781,-1487.753155,0.0003589,7]
[336691608,1725028248790,-1487.753155,0.0003589,7]
[336691609,1725028248799,-500.0,0.0003589,31]
[336691610,1725028248809,-1487.753155,0.0003589,7]
[336691611,1725028248818,-1487.753155,0.0003589,7]
[336691612,1725028248827,-1487.753155,0.0003589,7]
[336691613,1725028248837,-605.67749981,0.0003589,31]
[336691614,1725028248847,-2818.46,0.0003589,31]
[336691615,1725028248860,-9722.75,0.0003589,8]
[336691616,1725028248872,-500.0,0.0003589,31]
[336691617,1725028248881,-641.212533,0.0003589,31]
[336691618,1725028248891,-500.0,0.0003589,31]
[336691619,1725028248903,-500.0,0.0003589,31]
[336691620,1725028248912,-3746.067549,0.0003589,7]
[336691621,1725028248921,-3746.067549,0.0003589,7]
[336691622,1725028248930,-1342.96559686,0.0003589,7]
[336691629,1725028363973,526.0,0.00025,120]
[336691630,1725028473386,158.249952,0.00014247,2]
[336691644,1725029000437,158.249946,0.00014247,2]
[336691652,1725029136550,200.0,0.000244,120]
[336691654,1725029181498,200.0,0.000248,120]
[336691655,1725029213459,200.0,0.00025,120]
[336691659,1725029382006,10000.0,0.00025,120]
[336691660,1725029394091,10000.0,0.00025,120]
[336691661,1725029403584,10000.0,0.00025,120]
[336691663,1725029415015,10000.0,0.00025,120]
[336691664,1725029428032,10000.0,0.00025,120]
[336691689,1725029436750,10000.0,0.00025,120]
[336691709,1725029438681,-204.34911537,0.000209,2]
[336691710,1725029438691,-710.901675,0.00021,2]
[336691711,1725029438701,-158.249946,0.00023688,2]
[336691712,1725029438711,-205.2119363,0.00025427,2]
[336691713,1725029438721,-189.335375,0.0002628,2]
[336691714,1725029438731,-153.87,0.000266,31]
[336691715,1725029438740,-300.0,0.00027984,2]
[336691716,1725029438752,-21151.6516599,0.00027985,2]
[336691717,1725029438761,-500.73128569,0.00028,5]
[336691718,1725029438771,-500.0,0.00028,5]
[336691719,1725029438780,-500.0,0.0002839,2]
[336691720,1725029438790,-500.0,0.0002848,2]
[336691721,1725029438799,-254.776493,0.00028548,5]
[336691722,1725029438810,-500.0,0.00029163,2]
[336691723,1725029438819,-500.0,0.00029195,2]
[336691724,1725029438829,-500.0,0.00029271,2]
[336691725,1725029438839,-3000.0,0.00029504,2]
[336691726,1725029438849,-500.0,0.00029609,2]
[336691727,1725029438858,-164.560786,0.00029736,2]
[336691728,1725029438867,-500.0,0.0002977,2]
[336691729,1725029438877,-500.0,0.00029817,2]
[336691730,1725029438886,-151.0,0.0003,120]
[336691731,1725029438895,-151.0,0.0003,120]
[336691732,1725029438905,-200.0,0.0003,120]
[336691733,1725029438915,-151.0,0.00030025,6]
[336691734,1725029438924,-500.0,0.00030581,7]
[336691735,1725029438934,-500.0,0.0003074,7]
[336691736,1725029438944,-300.0,0.00030782,2]
[336691737,1725029438954,-153.87,0.000311,31]
[336691738,1725029438964,-153.87,0.000311,31]
[336691739,1725029438973,-500.0,0.00031132,7]
[336691740,1725029438983,-151.0,0.00031255,7]
[336691741,1725029438992,-151.0,0.00031589,120]
[336691742,1725029439002,-150.0,0.00032188,14]
[336691743,1725029439012,-150.0,0.00032188,14]
[336691744,1725029439021,-200.0,0.00032188,14]
[336691745,1725029439031,-500.0,0.00032245,7]
[336691746,1725029439040,-500.0,0.00032285,7]
[336691747,1725029439049,-500.0,0.00032307,7]
[336691748,1725029439059,-500.0,0.00032384,7]
[336691749,1725029439068,-500.0,0.00032404,7]
[336691750,1725029439077,-151.0,0.00032485,15]
[336691751,1725029439087,-151.0,0.00032603,120]
[336691752,1725029439096,-500.0,0.00032994,7]
[336691753,1725029439106,-171.0,0.00033,2]
[336691754,1725029439116,-500.0,0.00033013,7]
[336691755,1725029439125,-158.249946,0.0003313,2]
[336691756,1725029439135,-500.0,0.0003313,7]
[336691757,1725029439149,-151.0,0.00033178,120]
[336691758,1725029439159,-500.0,0.00033255,7]
[336691759,1725029439169,-5196.25171994,0.0003337,2]
[336691760,1725029439178,-500.0,0.00033432,7]
[336691761,1725029439188,-500.0,0.00033631,7]
[336691762,1725029439197,-5196.25171994,0.00033654,2]
[336691763,1725029439207,-500.0,0.00033662,7]
[336691764,1725029439217,-151.0,0.00033715,15]
[336691765,1725029439230,-5196.25171994,0.00033773,2]
[336691766,1725029439239,-500.0,0.00033838,7]
[336691767,1725029439250,-5196.25171994,0.00034025,2]
[336691768,1725029439261,-5196.25171994,0.00034325,2]
[336691769,1725029439271,-153.0,0.00034487,2]
[336691770,1725029439280,-209.4109938,0.00034487,2]
[336691771,1725029439290,-153.0,0.00034487,2]
[336691772,1725029439299,-153.0,0.00034487,2]
[336691773,1725029439309,-153.0,0.00034487,2]
[336691774,1725029439319,-153.0,0.00034487,2]
[336691775,1725029439329,-153.0,0.00034487,2]
[336691776,1725029439339,-153.0,0.00034487,2]
[336691777,1725029439348,-153.0,0.00034487,2]
[336691778,1725029439358,-5196.25171994,0.00034611,2]
[336691779,1725029439369,-500.0,0.00034637,7]
[336691780,1725029439379,-500.0,0.00034721,7]
[336691781,1725029439388,-151.0,0.00034767,120]
[336691782,1725029439398,-500.0,0.00034836,7]
[336691783,1725029439407,-5196.25171994,0.00034856,2]
[336691784,1725029439416,-2108.77930938,0.000349,2]
[336691785,1725029439428,-500.0,0.00034928,7]
[336691786,1725029439437,-151.0,0.00034945,15]
[336691787,1725029439447,-500.0,0.00034973,4]
[336691788,1725029439457,-500.0,0.00034973,5]
[336691789,1725029439466,-567.1,0.0003498,3]
[336691790,1725029439476,-6418.4,0.0003498,3]
[336691791,1725029439485,-5348.67,0.0003498,3]
[336691792,1725029439494,-500.0,0.00034981,7]
[336691793,1725029439505,-500.0,0.00034984,7]
[336691794,1725029439514,-108392.425439,0.0003499,4]
[336691795,1725029439523,-10000.0,0.00035,15]
[336691796,1725029439532,-1000.0,0.00035,2]
[336691797,1725029439542,-500.0,0.00035029,7]
[336691798,1725029439551,-2108.77930934,0.00035054,2]
[336691799,1725029439560,-5196.25171994,0.00035074,2]
[336691800,1725029439569,-409.5167953,0.000352,62]
[336691801,1725029439578,-409.5167953,0.000352,62]
[336691802,1725029439588,-409.5167953,0.000352,62]
[336691803,1725029439597,-409.5167953,0.000352,120]
[336691804,1725029439608,-409.5167953,0.000352,62]
[336691805,1725029439621,-537.8743126,0.000352,62]
[336691806,1725029439630,-151.0,0.00035205,120]
[336691807,1725029439642,-2108.77930934,0.00035208,2]
[336691808,1725029439652,-153.0,0.00035309,2]
[336691809,1725029439661,-153.0,0.00035309,2]
[336691810,1725029439670,-153.0,0.00035309,2]
[336691811,1725029439679,-153.0,0.00035309,2]
[336691812,1725029439689,-153.0,0.00035309,2]
[336691813,1725029439698,-5196.25171994,0.00035361,2]
[336691814,1725029439707,-2108.77930934,0.00035362,2]
[336691815,1725029439717,-3004.69109078,0.00035516,120]
[336691816,1725029439726,-493.6963366,0.00035516,120]
[336691817,1725029439735,-1616.74683471,0.00035516,2]
[336691818,1725029439744,-2108.77930934,0.00035516,2]
[336691819,1725029439755,-500.0,0.00035521,4]
[336691820,1725029439764,-258.2388351,0.00035521,5]
[336691821,1725029439774,-500.0,0.00035554,7]
[336691822,1725029439784,-500.0,0.00035594,7]
[336691823,1725029439793,-228.91564686,0.00035594,7]
[336691824,1725029439803,-181.63965216,0.00035594,7]
[336691825,1725029439813,-500.0,0.00035594,7]
[336691826,1725029439823,-360.26013275,0.00035594,7]
[336691827,1725029439832,-500.0,0.00035594,7]
[336691828,1725029439842,-500.0,0.00035594,7]
[336691829,1725029439851,-500.0,0.00035594,7]
[336691830,1725029439978,-500.0,0.00035594,7]
[336691831,1725029439989,-500.0,0.00035594,7]
[336691832,1725029440002,-500.0,0.00035594,7]
[336691833,1725029440012,-500.0,0.00035594,7]
[336691834,1725029440022,-500.0,0.00035594,7]
[336691835,1725029440032,-500.0,0.00035594,7]
[336691836,1725029440042,-500.0,0.00035594,7]
[336691837,1725029440052,-500.0,0.00035594,7]
[336691838,1725029440062,-500.0,0.00035594,7]
[336691839,1725029440072,-550.0,0.00035594,7]
[336691840,1725029440081,-108392.425439,0.00035595,4]
[336691841,1725029440091,-11719.1054906,0.000356,7]
[336691842,1725029440101,-16342.8152769,0.00035604,2]
[336691843,1725029440110,-216784.850878,0.00035606,4]
[336691844,1725029440120,-502.92181326,0.00035616,31]
[336691845,1725029440132,-500.80197448,0.00035616,31]
[336691846,1725029440141,-503.18473622,0.00035616,31]
[336691847,1725029440151,-500.0,0.00035616,31]
[336691849,1725029440161,-200.46179479,0.00035616,31]
[336691850,1725029440170,-500.0,0.00035616,31]
[336691851,1725029440180,-501.43104183,0.00035616,31]
[336691852,1725029440189,-500.0,0.00035616,31]
[336691853,1725029440198,-502.38484092,0.00035616,31]
[336691854,1725029440207,-500.0,0.00035616,31]
[336691855,1725029440218,-500.0,0.00035616,31]
[336691856,1725029440228,-500.0,0.00035616,31]
[336691857,1725029440238,-502.19564073,0.00035616,31]
[336691858,1725029440247,-500.0,0.00035616,31]
[336691859,1725029440261,-500.0,0.00035616,31]
[336691861,1725029440270,-500.0,0.00035616,31]
[336691862,1725029440279,-502.63945411,0.00035616,31]
[336691863,1725029440289,-1278.62,0.00035616,31]
[336691865,1725029440300,-500.0,0.00035616,31]
[336691866,1725029440310,-541.99109517,0.00035616,31]
[336691868,1725029440319,-500.0,0.00035616,31]
[336691869,1725029440329,-500.0,0.00035616,31]
[336691870,1725029440339,-500.0,0.00035616,31]
[336691871,1725029440349,-503.07998436,0.00035616,31]
[336691872,1725029440359,-500.0,0.00035616,31]
[336691873,1725029440368,-500.0,0.00035616,31]
[336691874,1725029440378,-500.0,0.00035616,31]
[336691875,1725029440388,-565.48646795,0.00035616,31]
[336691876,1725029440397,-500.0,0.00035616,31]
[336691877,1725029440407,-500.0,0.00035616,31]
[336691878,1725029440417,-500.0,0.00035616,31]
[336691879,1725029440428,-500.0,0.00035616,31]
[336691880,1725029440437,-500.0,0.00035616,31]
[336691881,1725029440447,-500.0,0.00035616,31]
[336691882,1725029440458,-502.43881904,0.00035616,31]
[336691883,1725029440468,-500.0,0.00035616,31]
[336691884,1725029440478,-501.23403625,0.00035616,10]
[336691885,1725029440488,-500.0,0.00035616,31]
[336691886,1725029440498,-500.0,0.00035616,31]
[336691887,1725029440513,-502.24624725,0.00035616,31]
[336691888,1725029440524,-355.71,0.00035616,31]
[336691889,1725029440535,-500.0,0.00035616,31]
[336691890,1725029440546,-500.0,0.00035616,31]
[336691892,1725029440557,-502.72684302,0.00035616,31]
[336691893,1725029440567,-500.0,0.00035616,31]
[336691895,1725029440577,-500.0,0.00035616,31]
[336691897,1725029440587,-500.0,0.00035616,31]
[336691899,1725029440597,-500.0,0.00035616,31]
[336691900,1725029440607,-500.0,0.00035616,31]
[336691901,1725029440617,-633.81133071,0.00035616,31]
[336691902,1725029440628,-500.0,0.00035616,31]
[336691903,1725029440638,-500.0,0.00035616,31]
[336691904,1725029440648,-500.0,0.00035616,31]
[336691906,1725029440658,-500.0,0.00035616,31]
[336691908,1725029440667,-500.0,0.00035616,31]
[336691910,1725029440677,-500.0,0.00035616,31]
[336691911,1725029440686,-500.0,0.00035616,31]
[336691912,1725029440696,-325.29964554,0.00035616,31]
[336691913,1725029440706,-500.0,0.00035616,31]
[336691914,1725029440716,-1046.2624374,0.00035616,90]
[336691915,1725029440726,-500.0,0.00035616,31]
[336691916,1725029440736,-500.0,0.00035616,31]
[336691917,1725029440746,-500.0,0.00035616,31]
[336691918,1725029440759,-502.71528468,0.00035616,31]
[336691919,1725029440769,-500.0,0.00035616,31]
[336691920,1725029440779,-500.0,0.00035616,31]
[336691921,1725029440788,-500.0,0.00035616,31]
[336691922,1725029440798,-500.0,0.00035616,31]
[336691923,1725029440807,-500.0,0.00035616,31]
[336691924,1725029440817,-504.90442376,0.00035616,31]
[336691925,1725029440827,-500.0,0.00035616,31]
[336691926,1725029440838,-617.74032906,0.00035616,31]
[336691927,1725029440847,-500.0,0.00035616,31]
[336691928,1725029440857,-500.0,0.00035616,31]
[336691929,1725029440867,-500.0,0.00035616,31]
[336691930,1725029440876,-500.0,0.00035616,31]
[336691931,1725029440886,-171.72825114,0.00035616,31]
[336691932,1725029440895,-2978.84,0.00035616,31]
[336691933,1725029440905,-503.45219033,0.00035616,31]
[336691934,1725029440915,-500.0,0.00035616,31]
[336691935,1725029440924,-500.0,0.00035616,31]
[336691936,1725029440934,-500.0,0.00035616,31]
[336691937,1725029440943,-500.0,0.00035616,31]
[336691938,1725029440953,-500.0,0.00035616,31]
[336691939,1725029440962,-500.0,0.00035616,31]
[336691940,1725029440972,-500.0,0.00035616,31]
[336691941,1725029440981,-500.0,0.00035616,31]
[336691942,1725029440990,-507.11129092,0.00035616,31]
[336691943,1725029441001,-500.0,0.00035616,31]
[336691944,1725029441010,-500.0,0.00035616,31]
[336691945,1725029441020,-500.0,0.00035616,30]
[336691946,1725029441030,-500.0,0.00035616,31]
[336691947,1725029441039,-372.28753431,0.00035616,31]
[336691948,1725029441048,-500.0,0.00035616,31]
[336691949,1725029441059,-500.0,0.00035616,31]
[336691950,1725029441068,-500.0,0.00035616,31]
[336691951,1725029441077,-240.68880114,0.00035616,31]
[336691952,1725029441086,-500.0,0.00035616,31]
[336691953,1725029441096,-500.0,0.00035616,31]
[336691954,1725029441105,-500.0,0.00035616,31]
[336691955,1725029441114,-500.0,0.00035616,31]
[336691956,1725029441124,-505.73439015,0.00035616,31]
[336691957,1725029441135,-500.0,0.00035616,31]
[336691958,1725029441145,-500.0,0.00035616,31]
[336691959,1725029441154,-401.02696912,0.00035616,31]
[336691960,1725029441163,-337.22,0.00035616,31]
[336691961,1725029441173,-500.0,0.00035616,31]
[336691962,1725029441182,-500.0,0.00035616,31]
[336691963,1725029441191,-500.45948522,0.00035616,31]
[336691964,1725029441200,-500.0,0.00035616,31]
[336691965,1725029441210,-154.60575532,0.00035616,31]
[336691966,1725029441223,-500.0,0.00035616,31]
[336691967,1725029441233,-500.0,0.00035616,31]
[336691968,1725029441242,-500.0,0.00035616,31]
[336691969,1725029441254,-500.0,0.00035616,31]
[336691970,1725029441271,-500.0,0.00035616,31]
[336691971,1725029441280,-500.0,0.00035616,31]
[336691972,1725029441290,-500.0,0.00035616,31]
[336691973,1725029441299,-500.0,0.00035616,31]
[336691974,1725029441311,-213.61860734,0.00035616,31]
[336691975,1725029441320,-500.0,0.00035616,31]
[336691976,1725029441331,-500.0,0.00035616,31]
[336691977,1725029441340,-500.0,0.00035616,31]
[336691978,1725029441349,-501.05464364,0.00035616,31]
[336691979,1725029441359,-500.0,0.00035616,7]
[336691980,1725029441369,-500.0,0.00035616,31]
[336691981,1725029441378,-186.73919535,0.00035616,31]
[336691982,1725029441387,-500.0,0.00035616,31]
[336691983,1725029441397,-500.0,0.00035616,31]
[336691984,1725029441406,-500.0,0.00035616,31]
[336691985,1725029441416,-500.0,0.00035616,31]
[336691986,1725029441425,-500.0,0.00035616,31]
[336691987,1725029441435,-500.0,0.00035616,31]
[336691988,1725029441445,-500.0,0.00035616,31]
[336691989,1725029441455,-500.0,0.00035616,31]
[336691990,1725029441465,-500.0,0.00035616,31]
[336691991,1725029441474,-505.31043774,0.00035616,31]
[336691992,1725029441483,-500.0,0.00035616,31]
[336691993,1725029441493,-500.0,0.00035616,31]
[336691994,1725029441507,-500.0,0.00035616,31]
[336691995,1725029441516,-500.0,0.00035616,31]
[336691996,1725029441525,-500.0,0.00035616,31]
[336691997,1725029441535,-500.0,0.00035616,31]
[336691998,1725029441544,-500.0,0.00035616,31]
[336691999,1725029441553,-500.0,0.00035616,31]
[336692000,1725029441563,-500.0,0.00035616,31]
[336692001,1725029441572,-500.0,0.00035616,31]
[336692002,1725029441581,-500.0,0.00035616,31]
[336692003,1725029441590,-500.0,0.00035616,31]
[336692004,1725029441599,-500.0,0.00035616,31]
[336692005,1725029441608,-500.0,0.00035616,31]
[336692006,1725029441618,-500.0,0.00035616,31]
[336692007,1725029441628,-500.0,0.00035616,31]
[336692008,1725029441637,-500.0,0.00035616,31]
[336692009,1725029441646,-500.70089688,0.00035616,31]
[336692010,1725029441656,-500.0,0.00035616,31]
[336692011,1725029441666,-347.42452185,0.00035616,31]
[336692012,1725029441676,-500.0,0.00035616,31]
[336692013,1725029441685,-500.0,0.00035616,31]
[336692014,1725029441695,-500.0,0.00035616,31]
[336692015,1725029441704,-500.0,0.00035616,31]
[336692016,1725029441713,-500.0,0.00035616,31]
[336692017,1725029441722,-500.0,0.00035616,31]
[336692018,1725029441732,-500.0,0.00035616,31]
[336692019,1725029441741,-500.0,0.00035616,31]
[336692020,1725029441751,-500.0,0.00035616,31]
[336692021,1725029441761,-500.0,0.00035616,31]
[336692022,1725029441770,-500.0,0.00035616,31]
[336692023,1725029441779,-500.0,0.00035616,31]
[336692024,1725029441789,-500.0,0.00035616,31]
[336692025,1725029441798,-500.0,0.00035616,31]
[336692026,1725029441807,-500.0,0.00035616,31]
[336692027,1725029441817,-500.0,0.00035616,31]
[336692028,1725029441826,-500.0,0.00035616,31]
[336692029,1725029441836,-500.0,0.00035616,31]
[336692030,1725029441845,-500.0,0.00035616,31]
[336692031,1725029441854,-501.55899695,0.00035616,31]
[336692032,1725029441864,-500.0,0.00035616,31]
[336692033,1725029441873,-500.0,0.00035616,31]
[336692034,1725029441882,-500.0,0.00035616,31]
[336692035,1725029441892,-500.0,0.00035616,31]
[336692036,1725029441902,-500.0,0.00035616,31]
[336692037,1725029441913,-500.0,0.00035616,31]
[336692038,1725029441922,-500.0,0.00035616,31]
[336692039,1725029441932,-500.0,0.00035616,31]
[336692040,1725029441941,-503.74762592,0.00035616,31]
[336692041,1725029441950,-500.0,0.00035616,31]
[336692042,1725029441960,-500.0,0.00035616,31]
[336692043,1725029441969,-500.0,0.00035616,31]
[336692044,1725029441979,-500.0,0.00035616,31]
[336692045,1725029441988,-500.0,0.00035616,31]
[336692046,1725029441997,-500.0,0.00035616,31]
[336692047,1725029442008,-500.0,0.00035616,31]
[336692048,1725029442018,-500.0,0.00035616,31]
[336692049,1725029442030,-500.0,0.00035616,31]
[336692050,1725029442040,-500.0,0.00035616,31]
[336692051,1725029442050,-500.0,0.00035616,31]
[336692052,1725029442060,-500.0,0.00035616,31]
[336692053,1725029442070,-500.0,0.00035616,7]
[336692054,1725029442079,-500.0,0.00035616,31]
[336692055,1725029442088,-500.0,0.00035616,31]
[336692056,1725029442097,-501.1717306,0.00035616,31]
[336692057,1725029442106,-500.0,0.00035616,31]
[336692058,1725029442116,-271.36924426,0.00035616,31]
[336692059,1725029442125,-500.0,0.00035616,31]
[336692060,1725029442134,-500.0,0.00035616,31]
[336692061,1725029442143,-500.0,0.00035616,31]
[336692062,1725029442153,-501.56465971,0.00035616,31]
[336692063,1725029442162,-500.0,0.00035616,31]
[336692064,1725029442171,-500.0,0.00035616,31]
[336692065,1725029442181,-500.0,0.00035616,31]
[336692066,1725029442190,-500.0,0.00035616,31]
[336692067,1725029442199,-500.0,0.00035616,31]
[336692068,1725029442290,-158.30351237,0.00035616,31]
[336692069,1725029442301,-500.0,0.00035616,31]
[336692070,1725029442311,-500.0,0.00035616,31]
[336692071,1725029442321,-500.0,0.00035616,31]
[336692072,1725029442330,-500.0,0.00035616,31]
[336692073,1725029442339,-500.0,0.00035616,31]
[336692074,1725029442348,-500.0,0.00035616,31]
[336692075,1725029442357,-500.0,0.00035616,31]
[336692076,1725029442367,-500.0,0.00035616,31]
[336692077,1725029442377,-500.0,0.00035616,31]
[336692078,1725029442386,-500.0,0.00035616,31]
[336692079,1725029442396,-500.0,0.00035616,31]
[336692080,1725029442406,-500.44140356,0.00035616,31]
[336692081,1725029442415,-500.0,0.00035616,31]
[336692082,1725029442425,-500.0,0.00035616,31]